fUST/lending_fUST_20250324
["ID","MTS","AMOUNT","RATE_DAILY","PERIOD"]
[356598025,1742766646297,-500.0,0.00013698,2]
[356598026,1742766646307,-500.0,0.00013698,2]
[356598027,1742766646316,-500.0,0.00013698,2]
[356598028,1742766646326,-461.82386084,0.00013698,2]
[356598029,1742766743864,-3238.0,0.00048623,31]
[356598030,1742766743891,-530.0,0.00048623,31]
[356598031,1742766743917,-280.0,0.00048623,31]
[356598032,1742766743943,-150.0,0.00048623,31]
[356598033,1742766743969,-210.0,0.00048623,31]
[356598034,1742766743995,-420.0,0.00048623,31]
[356598035,1742766744020,-840.0,0.00048623,31]
[356598036,1742766744045,-1061.0,0.00048623,31]
[356598037,1742766744069,-1634.0,0.00048623,31]
[356598038,1742766744094,-1680.0,0.00048623,31]
[356598039,1742766744118,-2595.0,0.00048623,31]
[356598040,1742766744143,-3942.0,0.00048623,31]
[356598041,1742766744168,-645.0,0.00048623,31]
[356598042,1742766744192,-191.0,0.00048623,31]
[356598043,1742766744217,-150.0,0.00048623,31]
[356598044,1742766744242,-1055.0,0.00048623,30]
[356598045,1742766744267,-1583.86,0.00048623,120]
[356598046,1742766744293,-1583.86,0.00048623,120]
[356598047,1742766744317,-1583.86,0.00048623,120]
[356598048,1742766744342,-1583.86,0.00048623,120]
[356598049,1742766744366,-1583.86,0.00048623,120]
[356598050,1742766744391,-1583.86,0.00048623,120]
[356598051,1742766744415,-1583.86,0.00048623,120]
[356598052,1742766744440,-1583.86,0.00048623,120]
[356598053,1742766744465,-1583.86,0.00048623,120]
[356598054,1742766744490,-1583.86,0.00048623,120]
[356598055,1742766744515,-1583.86,0.00048623,120]
[356598056,1742766744541,-1583.86,0.00048623,120]
[356598057,1742766744566,-1583.86,0.00048623,120]
[356598058,1742766744592,-1583.86,0.00048623,120]
[356598059,1742766744620,-1583.86,0.00048623,120]
[356598060,1742766744647,-1583.86,0.00048623,120]
[356598061,1742766744672,-1583.86,0.00048623,120]
[356598062,1742766744698,-1583.86,0.00048623,120]
[356598063,1742766744723,-1583.86,0.00048623,120]
[356598064,1742766744748,-1583.86,0.00048623,120]
[356598065,1742766744775,-1583.86,0.00048623,120]
[356598066,1742766744803,-1583.86,0.00048623,120]
[356598067,1742766744827,-1583.86,0.00048623,120]
[356598068,1742766744852,-1583.89347665,0.00048623,120]
[356598069,1742766744877,-150.0,0.00048623,120]
[356598070,1742766744902,-202.04219249,0.00048623,120]
[356598071,1742766744927,-156.0,0.00048623,30]
[356598072,1742766744951,-2016.4,0.00048623,30]
[356598073,1742766744975,-2000.0,0.00048623,30]
[356598074,1742766744999,-2000.0,0.00048623,30]
[356598075,1742766745024,-891.2,0.00048623,30]
[356598076,1742766745050,-2999.999999,0.00048623,31]
[356598077,1742766745075,-2517.43279931,0.00048623,120]
[356598078,1742766745099,-1998.52013891,0.00048623,120]
[356598079,1742766745124,-1493.09366494,0.00048623,120]
[356598080,1742766745150,-3899.0,0.00048623,120]
[356598081,1742766745175,-3137.51424773,0.00048623,120]
[356598082,1742766745200,-3242.81638324,0.00048623,45]
[356598083,1742766745224,-468.32056218,0.00048623,120]
[356598084,1742766745249,-253.18614389,0.00048623,30]
[356598085,1742766745274,-608.05224194,0.00048623,30]
[356598086,1742766745299,-563.91419529,0.00048623,120]
[356598087,1742766745324,-883.3531903,0.00048623,32]
[356598088,1742766745349,-3310.60383131,0.00048623,120]
[356598089,1742766745374,-248.4275955,0.00048623,120]
[356598090,1742766745399,-498.999993,0.00048623,120]
[356598091,1742766745425,-903.74581734,0.00048623,120]
[356598092,1742766745451,-524.35077036,0.00048623,120]
[356598093,1742766745475,-968.37705931,0.00048623,120]
[356598094,1742766745500,-3300.83315678,0.00048623,30]
[356598095,1742766745525,-544.33075044,0.00048623,120]
[356598096,1742766745551,-2236.37304046,0.00048623,120]
[356598097,1742766745575,-679.18601743,0.00048623,120]
[356598098,1742766745600,-1328.94186361,0.00048623,30]
[356598099,1742766745629,-3200.72006804,0.00048623,30]
[356598100,1742766745654,-652.2976742,0.00048623,32]
[356598101,1742766745678,-240.82074905,0.00048623,120]
[356598102,1742766745707,-499.999999,0.00048623,30]
[356598103,1742766745731,-1488.13202229,0.00048623,30]
[356598104,1742766745757,-1421.87844383,0.00048623,120]
[356598105,1742766745782,-463.8830137,0.00048623,30]
[356598106,1742766745807,-934.83498353,0.00048623,120]
[356598107,1742766745832,-669.31621348,0.00048623,60]
[356598108,1742766745857,-2000.0,0.00048623,120]
[356598109,1742766745882,-240.74635744,0.00048623,30]
[356598110,1742766745907,-1086.02554653,0.00048623,120]
[356598111,1742766745933,-384.83422711,0.00048623,120]
[356598112,1742766745958,-1572.22463525,0.00048623,30]
[356598113,1742766745983,-350.21382923,0.00048623,30]
[356598114,1742766746008,-937.37051181,0.00048623,120]
[356598115,1742766746033,-1151.04213872,0.00048623,30]
[356598116,1742766746058,-2546.72488006,0.00048623,120]
[356598117,1742766746083,-381.76864642,0.00048623,120]
[356598118,1742766746108,-365.13210905,0.00048623,120]
[356598119,1742766746134,-994.15049909,0.00048623,120]
[356598120,1742766746177,-440.33756062,0.00048623,120]
[356598121,1742766746424,-2467.48426687,0.00048623,120]
[356598122,1742766746449,-2301.79607691,0.00048623,120]
[356598123,1742766746473,-853.60230977,0.00048623,120]
[356598124,1742766746497,-420.90679006,0.00048623,120]
[356598125,1742766746520,-1737.31324188,0.00048623,120]
[356598126,1742766746546,-213.04677822,0.00048623,120]
[356598127,1742766746570,-234.22215896,0.00048623,120]
[356598128,1742766746594,-312.77086421,0.00048623,120]
[356598129,1742766746620,-201.05514086,0.00048623,120]
[356598130,1742766746645,-175.65916391,0.00048623,30]
[356598131,1742766746669,-526.74655583,0.00048623,120]
[356598132,1742766746695,-400.10086545,0.00048623,30]
[356598133,1742766746719,-1155.1397268,0.00048623,120]
[356598134,1742766746750,-306.49091,0.00048623,30]
[356598135,1742766746776,-5436.52944207,0.00048623,120]
[356598136,1742766746801,-191.0,0.00048623,120]
[356598137,1742766746826,-518.0,0.00048623,120]
[356598138,1742766746851,-500.0,0.00048623,30]
[356598139,1742766746876,-500.0,0.00048623,30]
[356598140,1742766746900,-500.0,0.00048623,30]
[356598141,1742766746925,-201192.09241,0.00048623,60]
[356598142,1742766746951,-1200.0,0.00048623,90]
[356598143,1742766746975,-600000.0,0.00048623,30]
[356598144,1742766746999,-12602.65152924,0.00048623,60]
[356598145,1742766747025,-247.95377779,0.00048623,30]
[356598146,1742766747049,-353.29096432,0.00048623,30]
[356598147,1742766747074,-3051.0,0.00048623,120]
[356598148,1742766747100,-3051.0,0.00048623,120]
[356598149,1742766747125,-3051.0,0.00048623,120]
[356598150,1742766747149,-3051.0,0.00048623,120]
[356598151,1742766747174,-3051.0,0.00048623,120]
[356598152,1742766747198,-3051.0,0.00048623,120]
[356598153,1742766747223,-3051.0,0.00048623,120]
[356598154,1742766747247,-3051.0,0.00048623,120]
[356598155,1742766747271,-3051.0,0.00048623,120]
[356598156,1742766747297,-3051.0,0.00048623,120]
[356598157,1742766747322,-500.0,0.00048623,30]
[356598158,1742766747347,-1761.00378699,0.00048623,45]
[356598159,1742766754549,-161.66691558,0.00048623,45]
[356598160,1742766754580,-350.51537764,0.00048623,120]
[356598161,1742766754611,-393.0,0.00048623,120]
[356598162,1742766754638,-76874.30699747,0.00048623,30]
[356598163,1742766754668,-1227.5538804,0.00048623,60]
[356598164,1742766754695,-82960.98877901,0.00048623,30]
[356598165,1742766754725,-7303.247042,0.00048623,30]
[356598166,1742766754753,-2688.05292688,0.00048623,120]
[356598167,1742766765531,2000.0,0.00048619,30]
[356598168,1742766766132,2000.0,0.00048619,30]
[356598169,1742766766578,890.8,0.00048619,30]
[356598214,1742767344135,228.0,0.00048655,30]
[356598217,1742767425569,-258.16253251,0.00012728,2]
[356598218,1742767556426,-177.10636203,0.00012601,2]
[356598219,1742767556452,-25.31634761,0.00012648,2]
[356598221,1742767563225,-176.22338134,0.00012648,2]
[356598225,1742767626274,-160.0,0.00012648,2]
[356598226,1742767628122,-4863.00858153,0.00012648,2]
[356598227,1742767780288,-3347.51868122,0.00012648,2]
[356598228,1742767780311,-165.28191878,0.00012728,2]
[356598230,1742767795772,-150.0,0.00012601,2]
[356598265,1742767832244,-622.56965784,0.00012601,2]
[356598266,1742767832255,-1938.89490651,0.00012728,2]
[356598267,1742767832265,-161.313294,0.00012826,2]
[356598268,1742767832275,-300.0,0.00013697,2]
[356598269,1742767832284,-500.0,0.00013698,2]
[356598270,1742767832293,-500.0,0.00013698,2]
[356598271,1742767832306,-500.0,0.00013698,2]
[356598272,1742767832316,-490.17749516,0.00013698,2]
[356598273,1742767832333,-9.82250484,0.00013698,2]
[356598274,1742767832342,-500.0,0.00013698,2]
[356598275,1742767832352,-500.0,0.00013698,2]
[356598276,1742767832361,-500.0,0.00013698,2]
[356598277,1742767832372,-500.0,0.00013698,2]
[356598278,1742767832381,-500.0,0.00013698,2]
[356598279,1742767832391,-500.0,0.00013698,2]
[356598280,1742767832400,-500.0,0.00013698,2]
[356598281,1742767832410,-438.02155166,0.00013698,2]
[356598283,1742767832420,-500.0,0.00013698,2]
[356598285,1742767832430,-288.11824122,0.00013698,2]
[356598286,1742767832439,-500.0,0.00013698,2]
[356598287,1742767832449,-500.0,0.00013698,2]
[356598288,1742767832458,-500.0,0.00013698,2]
[356598289,1742767832469,-757.56,0.00013698,2]
[356598290,1742767832479,-500.0,0.00013698,2]
[356598291,1742767832488,-500.0,0.00013698,2]
[356598292,1742767832498,-921.1,0.00013698,2]
[356598293,1742767832507,-500.0,0.00013698,2]
[356598294,1742767832517,-500.0,0.00013698,2]
[356598295,1742767832527,-2345.38,0.00013698,2]
[356598296,1742767832536,-500.0,0.00013698,2]
[356598297,1742767832546,-509.88384784,0.00013698,2]
[356598298,1742767832556,-1182.93,0.00013698,2]
[356598299,1742767832565,-500.0,0.00013698,2]
[356598300,1742767832575,-500.0,0.00013698,2]
[356598301,1742767832584,-500.0,0.00013698,2]
[356598302,1742767832594,-500.0,0.00013698,2]
[356598303,1742767832603,-500.0,0.00013698,2]
[356598304,1742767832613,-580.56,0.00013698,2]
[356598305,1742767832623,-500.0,0.00013698,2]
[356598306,1742767832633,-500.0,0.00013698,2]
[356598307,1742767832643,-500.0,0.00013698,2]
[356598308,1742767832653,-500.0,0.00013698,2]
[356598309,1742767832663,-500.0,0.00013698,2]
[356598310,1742767832673,-500.0,0.00013698,2]
[356598311,1742767832683,-500.0,0.00013698,2]
[356598312,1742767832692,-500.0,0.00013698,2]
[356598313,1742767832702,-500.0,0.00013698,2]
[356598314,1742767832712,-500.0,0.00013698,2]
[356598315,1742767832723,-500.0,0.00013698,2]
[356598316,1742767832947,-500.0,0.00013698,2]
[356598317,1742767832958,-500.0,0.00013698,2]
[356598318,1742767832968,-500.0,0.00013698,2]
[356598319,1742767832978,-500.0,0.00013698,2]
[356598320,1742767832988,-500.0,0.00013698,2]
[356598321,1742767832997,-500.0,0.00013698,2]
[356598322,1742767833007,-500.0,0.00013698,2]
[356598323,1742767833017,-500.0,0.00013698,2]
[356598324,1742767833027,-500.0,0.00013698,2]
[356598325,1742767833036,-245.59540358,0.00013698,2]
[356598326,1742767833046,-500.0,0.00013698,2]
[356598327,1742767833055,-554.34,0.00013698,2]
[356598328,1742767833065,-583.47,0.00013698,2]
[356598329,1742767833074,-500.0,0.00013698,2]
[356598330,1742767833084,-500.0,0.00013698,2]
[356598331,1742767833094,-500.0,0.00013698,2]
[356598332,1742767833104,-500.0,0.00013698,2]
[356598333,1742767833114,-500.0,0.00013698,2]
[356598334,1742767833124,-500.0,0.00013698,2]
[356598335,1742767833133,-500.0,0.00013698,2]
[356598336,1742767833143,-500.0,0.00013698,2]
[356598337,1742767833152,-500.0,0.00013698,2]
[356598338,1742767833162,-500.0,0.00013698,2]
[356598339,1742767833173,-500.0,0.00013698,2]
[356598340,1742767833182,-500.0,0.00013698,2]
[356598341,1742767833192,-5067.49,0.00013698,2]
[356598342,1742767833202,-856.21501441,0.00013698,2]
[356598354,1742767838082,-1797.19498559,0.00013698,2]
[356598355,1742767838092,-8198.7,0.00013698,2]
[356598356,1742767838102,-1006.41,0.00013698,2]
[356598357,1742767838112,-2940.71,0.00013698,2]
[356598358,1742767838122,-500.0,0.00013698,2]
[356598359,1742767838131,-500.0,0.00013698,2]
[356598360,1742767838141,-500.0,0.00013698,2]
[356598361,1742767838150,-500.0,0.00013698,2]
[356598362,1742767838160,-1183.27,0.00013698,2]
[356598363,1742767838170,-500.0,0.00013698,2]
[356598364,1742767838180,-500.0,0.00013698,2]
[356598365,1742767838189,-1109.55,0.00013698,2]
[356598366,1742767838199,-500.0,0.00013698,2]
[356598368,1742767838209,-10679.73,0.00013698,2]
[356598369,1742767838218,-500.0,0.00013698,2]
[356598370,1742767838227,-500.0,0.00013698,2]
[356598372,1742767838237,-616.77,0.00013698,2]
[356598374,1742767838246,-500.0,0.00013698,2]
[356598376,1742767838255,-16677.60833857,0.00013698,2]
[356598378,1742767838271,-2954.63742804,0.00013698,2]
[356598380,1742767838282,-15099.4306933,0.00013698,2]
[356598381,1742767838293,-8769.33151287,0.00013698,2]
[356598383,1742767838305,-724.22604502,0.00013698,2]
[356598385,1742767838316,-2260.17805655,0.00013698,2]
[356598387,1742767838331,-334.20000001,0.00013698,2]
[356598389,1742767838343,-1607.33871831,0.00013698,2]
[356598390,1742767838354,-2856.88826649,0.00013698,2]
[356598396,1742767842658,-17171.01512391,0.00013698,2]
[356598400,1742767842743,-155.84888636,0.00013698,2]
[356598401,1742767842755,-450.66000005,0.00013698,2]
[356598409,1742767843291,-37043.24693052,0.00013698,2]
[356598410,1742767843301,-500.0,0.00013698,2]
[356598411,1742767843310,-897.9,0.00013698,2]
[356598412,1742767843320,-500.0,0.00013698,2]
[356598413,1742767843330,-500.0,0.00013698,2]
[356598414,1742767843339,-4137.09,0.00013698,2]
[356598415,1742767843349,-500.0,0.00013698,2]
[356598416,1742767843359,-500.0,0.00013698,2]
[356598417,1742767843368,-500.0,0.00013698,2]
[356598418,1742767843377,-500.0,0.00013698,2]
[356598419,1742767843387,-1096.35,0.00013698,2]
[356598420,1742767843396,-2197.73,0.00013698,2]
[356598421,1742767843405,-773.45,0.00013698,2]
[356598422,1742767843414,-444.86773639,0.00013698,2]
[356598423,1742767843424,-500.0,0.00013698,2]
[356598425,1742767843433,-500.0,0.00013698,2]
[356598426,1742767843443,-500.0,0.00013698,2]
[356598427,1742767843452,-500.0,0.00013698,2]
[356598428,1742767843462,-1351.32,0.00013698,2]
[356598429,1742767843471,-500.0,0.00013698,2]
[356598430,1742767843481,-500.0,0.00013698,2]
[356598431,1742767843490,-500.0,0.00013698,2]
[356598432,1742767843499,-500.0,0.00013698,2]
[356598433,1742767843508,-500.0,0.00013698,2]
[356598434,1742767843518,-7007.55,0.00013698,2]
[356598435,1742767843527,-500.0,0.00013698,2]
[356598436,1742767843538,-500.0,0.00013698,2]
[356598437,1742767843547,-532.4,0.00013698,2]
[356598438,1742767843556,-674.73,0.00013698,2]
[356598439,1742767843566,-500.0,0.00013698,2]
[356598440,1742767843575,-4418.81,0.00013698,2]
[356598441,1742767843584,-500.0,0.00013698,2]
[356598442,1742767843594,-980.7,0.00013698,2]
[356598443,1742767843603,-500.0,0.00013698,2]
[356598444,1742767843612,-1674.18,0.00013698,2]
[356598445,1742767843622,-706.08,0.00013698,2]
[356598446,1742767843631,-500.0,0.00013698,2]
[356598447,1742767843641,-2938.51,0.00013698,2]
[356598448,1742767843650,-529.6,0.00013698,2]
[356598449,1742767843660,-500.0,0.00013698,2]
[356598450,1742767843669,-500.0,0.00013698,2]
[356598451,1742767843678,-277.49607335,0.00013698,2]
[356598452,1742767843688,-500.0,0.00013698,2]
[356598453,1742767843698,-626.22,0.00013698,2]
[356598454,1742767843707,-746.06,0.00013698,2]
[356598455,1742767843717,-500.0,0.00013698,2]
[356598456,1742767843727,-170.52636398,0.00013698,2]
[356598457,1742767843736,-869.25,0.00013698,2]
[356598458,1742767843745,-500.0,0.00013698,2]
[356598459,1742767843755,-500.0,0.00013698,2]
[356598460,1742767843765,-500.0,0.00013698,2]
[356598461,1742767843775,-500.0,0.00013698,2]
[356598462,1742767843785,-500.0,0.00013698,2]
[356598463,1742767843795,-500.0,0.00013698,2]
[356598464,1742767843804,-1187.84,0.00013698,2]
[356598465,1742767843813,-500.0,0.00013698,2]
[356598466,1742767843822,-1031.16,0.00013698,2]
[356598467,1742767843832,-590.6,0.00013698,2]
[356598468,1742767843841,-1508.01,0.00013698,2]
[356598469,1742767843850,-500.0,0.00013698,2]
[356598470,1742767843859,-500.0,0.00013698,2]
[356598471,1742767843868,-1102.81,0.00013698,2]
[356598472,1742767843878,-500.0,0.00013698,2]
[356598473,1742767843888,-12880.19,0.00013698,2]
[356598474,1742767843897,-500.0,0.00013698,2]
[356598475,1742767843907,-3320.68,0.00013698,2]
[356598476,1742767843916,-1858.37,0.00013698,2]
[356598477,1742767843926,-500.0,0.00013698,2]
[356598478,1742767843935,-1472.43,0.00013698,2]
[356598479,1742767843945,-750.09,0.00013698,2]
[356598480,1742767843953,-500.0,0.00013698,2]
[356598481,1742767843963,-3920.8,0.00013698,2]
[356598482,1742767843977,-500.0,0.00013698,2]
[356598483,1742767843987,-500.0,0.00013698,2]
[356598484,1742767843996,-4856.34,0.00013698,2]
[356598485,1742767844006,-373.615444,0.00013699,2]
[356598486,1742767844018,-186.8748709,0.00013699,2]
[356598487,1742767844027,-500.0,0.00013699,2]
[356598488,1742767844037,-500.0,0.00013699,2]
[356598489,1742767844046,-500.0,0.00013699,2]
[356598490,1742767844056,-500.0,0.00013699,2]
[356598491,1742767844066,-500.0,0.00013699,2]
[356598492,1742767844075,-500.0,0.00013699,2]
[356598493,1742767844084,-500.0,0.00013699,2]
[356598494,1742767844094,-500.0,0.00013699,2]
[356598495,1742767844103,-500.0,0.00013699,2]
[356598496,1742767844113,-500.0,0.00013699,2]
[356598497,1742767844122,-500.0,0.00013699,2]
[356598498,1742767844131,-500.0,0.00013699,2]
[356598499,1742767844141,-500.0,0.00013699,2]
[356598500,1742767844151,-500.0,0.00013699,2]
[356598501,1742767844160,-500.0,0.00013699,2]
[356598502,1742767844169,-500.0,0.00013699,2]
[356598503,1742767844179,-500.0,0.00013699,2]
[356598504,1742767844189,-500.0,0.00013699,2]
[356598505,1742767844198,-500.0,0.00013699,2]
[356598506,1742767844207,-500.0,0.00013699,2]
[356598507,1742767844217,-500.0,0.00013699,2]
[356598508,1742767844227,-500.0,0.00013699,2]
[356598509,1742767844236,-500.0,0.00013699,2]
[356598510,1742767844245,-500.0,0.00013699,2]
[356598511,1742767844254,-500.0,0.00013699,2]
[356598512,1742767844263,-500.0,0.00013699,2]
[356598513,1742767844273,-500.0,0.00013699,2]
[356598514,1742767844283,-500.0,0.00013699,2]
[356598515,1742767844292,-500.0,0.00013699,2]
[356598516,1742767844301,-500.0,0.00013699,2]
[356598517,1742767844310,-500.0,0.00013699,2]
[356598518,1742767844319,-500.0,0.00013699,2]
[356598519,1742767844329,-500.0,0.00013699,2]
[356598520,1742767844338,-500.0,0.00013699,2]
[356598521,1742767844347,-500.0,0.00013699,2]
[356598522,1742767844357,-500.0,0.00013699,2]
[356598523,1742767844366,-500.0,0.00013699,2]
[356598524,1742767844375,-500.0,0.00013699,2]
[356598525,1742767844385,-500.0,0.00013699,2]
[356598526,1742767844394,-500.0,0.00013699,2]
[356598527,1742767844403,-500.0,0.00013699,2]
[356598528,1742767844413,-500.0,0.00013699,2]
[356598529,1742767844422,-500.0,0.00013699,2]
[356598530,1742767844431,-400.0,0.00013815,2]
[356598531,1742767844440,-400.0,0.00013815,2]
[356598532,1742767844449,-1678.1750389,0.00013818,2]
[356598533,1742767844458,-541.0,0.00013912,2]
[356598534,1742767844467,-1915.0,0.00013912,2]
[356598535,1742767844476,-2264.0,0.00013912,2]
[356598536,1742767844485,-160.801771,0.00013924,3]
[356598537,1742767844495,-152.0,0.00013956,2]
[356598538,1742767844504,-500.0,0.00013972,2]
[356598539,1742767844514,-500.0,0.00013972,2]
[356598540,1742767844523,-500.0,0.00013972,2]
[356598541,1742767844534,-500.0,0.00013972,2]
[356598542,1742767844543,-500.0,0.00013972,2]
[356598543,1742767844552,-500.0,0.00013972,2]
[356598544,1742767844561,-500.0,0.00013972,2]
[356598545,1742767844570,-500.0,0.00013972,2]
[356598546,1742767844579,-500.0,0.00013972,2]
[356598547,1742767844589,-500.0,0.00013972,2]
[356598548,1742767844599,-500.0,0.00013972,2]
[356598549,1742767844609,-500.0,0.00013972,2]
[356598550,1742767844619,-500.0,0.00013972,2]
[356598551,1742767844628,-757.56,0.00013972,2]
[356598552,1742767844638,-500.0,0.00013972,2]
[356598553,1742767844647,-170.65876675,0.00013972,2]
[356598554,1742767844820,-921.1,0.00013972,2]
[356598555,1742767844831,-500.0,0.00013972,2]
[356598556,1742767844840,-500.0,0.00013972,2]
[356598557,1742767844850,-2345.38,0.00013972,2]
[356598558,1742767844859,-500.0,0.00013972,2]
[356598559,1742767844869,-1182.93,0.00013972,2]
[356598560,1742767844878,-500.0,0.00013972,2]
[356598561,1742767844887,-500.0,0.00013972,2]
[356598562,1742767844897,-500.0,0.00013972,2]
[356598564,1742767844907,-500.0,0.00013972,2]
[356598565,1742767844916,-500.0,0.00013972,2]
[356598566,1742767844925,-580.56,0.00013972,2]
[356598567,1742767844936,-500.0,0.00013972,2]
[356598568,1742767844945,-500.0,0.00013972,2]
[356598569,1742767844955,-500.0,0.00013972,2]
[356598570,1742767844967,-500.0,0.00013972,2]
[356598571,1742767844978,-500.0,0.00013972,2]
[356598572,1742767844988,-500.0,0.00013972,2]
[356598573,1742767844997,-500.0,0.00013972,2]
[356598574,1742767845006,-500.0,0.00013972,2]
[356598575,1742767845015,-500.0,0.00013972,2]
[356598576,1742767845025,-500.0,0.00013972,2]
[356598577,1742767845034,-500.0,0.00013972,2]
[356598578,1742767845044,-500.0,0.00013972,2]
[356598579,1742767845053,-500.0,0.00013972,2]
[356598580,1742767845062,-500.0,0.00013972,2]
[356598581,1742767845071,-500.0,0.00013972,2]
[356598582,1742767845080,-343.54804253,0.00013972,2]
[356598583,1742767845090,-500.0,0.00013972,2]
[356598584,1742767845099,-554.34,0.00013972,2]
[356598585,1742767845109,-583.47,0.00013972,2]
[356598586,1742767845119,-500.0,0.00013972,2]
[356598587,1742767845128,-500.0,0.00013972,2]
[356598588,1742767845138,-500.0,0.00013972,2]
[356598589,1742767845148,-500.0,0.00013972,2]
[356598590,1742767845158,-500.0,0.00013972,2]
[356598591,1742767845168,-598.21211198,0.00013972,2]
[356598592,1742767845177,-491.51546652,0.00013972,2]
[356598593,1742767845187,-500.0,0.00013972,2]
[356598594,1742767845197,-331.09903072,0.00013972,2]
[356598595,1742767845207,-500.0,0.00013972,2]
[356598596,1742767845216,-500.0,0.00013972,2]
[356598597,1742767845226,-2653.41,0.00013972,2]
[356598598,1742767845235,-8198.7,0.00013972,2]
[356598599,1742767845245,-1006.41,0.00013972,2]
[356598600,1742767845255,-2940.71,0.00013972,2]
[356598601,1742767845265,-500.0,0.00013972,2]
[356598602,1742767845274,-376.75120169,0.00013972,2]
[356598603,1742767845283,-500.0,0.00013972,2]
[356598604,1742767845293,-500.0,0.00013972,2]
[356598605,1742767845302,-1183.27,0.00013972,2]
[356598606,1742767845311,-500.0,0.00013972,2]
[356598607,1742767845320,-500.0,0.00013972,2]
[356598608,1742767845330,-1109.55,0.00013972,2]
[356598609,1742767845339,-500.0,0.00013972,2]
[356598610,1742767845349,-10679.73,0.00013972,2]
[356598611,1742767845359,-500.0,0.00013972,2]
[356598612,1742767845368,-500.0,0.00013972,2]
[356598613,1742767845378,-616.77,0.00013972,2]
[356598614,1742767845388,-500.0,0.00013972,2]
[356598615,1742767845397,-106104.61,0.00013972,2]
[356598616,1742767845407,-500.0,0.00013972,2]
[356598617,1742767845417,-897.9,0.00013972,2]
[356598618,1742767845426,-500.0,0.00013972,2]
[356598619,1742767845436,-500.0,0.00013972,2]
[356598620,1742767845446,-4137.09,0.00013972,2]
[356598621,1742767845455,-500.0,0.00013972,2]
[356598622,1742767845465,-500.0,0.00013972,2]
[356598623,1742767845475,-500.0,0.00013972,2]
[356598624,1742767845485,-500.0,0.00013972,2]
[356598625,1742767845495,-1096.35,0.00013972,2]
[356598626,1742767845504,-2197.73,0.00013972,2]
[356598627,1742767845514,-773.45,0.00013972,2]
[356598628,1742767845523,-500.0,0.00013972,2]
[356598629,1742767845533,-500.0,0.00013972,2]
[356598630,1742767845542,-500.0,0.00013972,2]
[356598631,1742767845552,-500.0,0.00013972,2]
[356598632,1742767845561,-1351.32,0.00013972,2]
[356598633,1742767845571,-500.0,0.00013972,2]
[356598634,1742767845580,-500.0,0.00013972,2]
[356598635,1742767845590,-500.0,0.00013972,2]
[356598636,1742767845599,-500.0,0.00013972,2]
[356598637,1742767845608,-500.0,0.00013972,2]
[356598638,1742767845617,-7007.55,0.00013972,2]
[356598639,1742767845627,-500.0,0.00013972,2]
[356598640,1742767845636,-500.0,0.00013972,2]
[356598641,1742767845646,-532.4,0.00013972,2]
[356598642,1742767845656,-674.73,0.00013972,2]
[356598643,1742767845665,-4418.81,0.00013972,2]
[356598644,1742767845675,-500.0,0.00013972,2]
[356598645,1742767845684,-980.7,0.00013972,2]
[356598646,1742767845693,-500.0,0.00013972,2]
[356598648,1742767845703,-1674.18,0.00013972,2]
[356598649,1742767845712,-706.08,0.00013972,2]
[356598651,1742767845722,-500.0,0.00013972,2]